Cogmind - Beta 17 @@@ ROGUE MODE // 2026.08.11 @ 19:29:13 Player: GogoFox Result: Destroyed by HI-L34(R) with Subdweller Laser Performance ------------- Evolutions (0) 0 Regions Visited (2) 400 Robots Destroyed (8) 40 Value Destroyed (224) 224 Prototype IDs (0) 0 Alien Tech Used (0) 0 Bonus (0) 0 TOTAL SCORE: 664 Bonus ------- None Cogmind --------- Core Integrity 0/250 Matter 300/300 Energy 99/100 System Corruption 0% Temperature Cool (6) Movement Core (200) Ox3 Location -10/Subcaves Parts ------- > --- POWER (1) -------- (None) > --- PROPULSION (2) --- (None) > --- UTILITY (2) ------ Medium Storage Unit > --- WEAPON (2) ------- (None) > --- INVENTORY (10) --- Aluminum Leg Hover Unit Visual Processing Unit Small Laser Peak State ------------ > --- POWER ------------ Light Ion Engine > --- PROPULSION ------- Aluminum Leg Aluminum Leg > --- UTILITY ---------- Scrap Shield > --- WEAPON ----------- Medium Laser Small Laser > --- INVENTORY -------- Aluminum Leg Hover Unit Hover Unit Visual Processing Unit Small Laser [Rating: 9] Favorites ----------- Power Light Ion Engine Engine Light Ion Engine Propulsion Aluminum Leg Leg Aluminum Leg Utility Heat Sink Device Heat Sink Storage Medium Storage Unit Protection Scrap Shield Weapon Medium Laser Energy Gun Medium Laser Build | -11 -10 -10 ------- Run | Yrd Mat Sub Slots Evolved . | . . . Power . | . . . Propulsion . | . . . Utility . | . . . Weapon . | . . . Parts Attached 9 | 5 3 1 Power 2 | 1 1 . Engine 2 | 1 1 . Core . | . . . Reactor . | . . . Propulsion 2 | 2 . . Treads . | . . . Leg 2 | 2 . . Wheel . | . . . Hover . | . . . Flight . | . . . Utility 3 | . 2 1 Device 1 | . 1 . Storage 1 | . 1 . Processor . | . . . Hackware . | . . . Protection 1 | . . 1 Artifact . | . . . Weapon 2 | 2 . . Energy Gun 2 | 2 . . Energy Cannon . | . . . Ballistic Gun . | . . . Ballistic Cannon . | . . . Launcher . | . . . Special Weapon . | . . . Impact Weapon . | . . . Slashing Weapon . | . . . Piercing Weapon . | . . . Special Melee Weapon . | . . . Unidentified Prototypes . | . . . Parts Lost 7 | . 1 6 Power 2 | . 1 1 Propulsion 2 | . . 2 Utility 1 | . . 1 Weapon 2 | . . 2 Highest Loss Streak 6 | . 1 6 To Critical Strikes . | . . . Average Backups 3 | . 3 5 Power . | . . . Propulsion 1 | . 1 2 Utility . | . . 1 Weapon 1 | . 1 1 Tool/Special . | . . . Unused Backups 7 | . 1 6 Power . | . . . Propulsion 4 | . 1 3 Utility 1 | . . 1 Weapon 2 | . . 2 Tool/Special . | . . . Average Slot Usage (%) 87 | . 88 85 Engine 13 | . 13 13 Leg 28 | . 28 28 Device 6 | . 9 1 Storage 6 | . 8 1 Protection 3 | . . 11 Energy Gun 27 | . 28 27 Peak Build Rating 9 | 5 7 9 Average Rating 6 | 3 6 8 On Entrance 4 | . 5 7 Avg Prop Armor Cover (%) . | . . . Naked Turns . | . . . Heaviest Build 24 | 6 17 24 Greatest Support 20 | 20 20 20 Greatest Overweight (x) 3 | . . 3 Average Overweight (x) . | . . . Largest Inventory Capacity 10 | 5 10 10 Average Capacity 7 | 5 7 5 Most Carried 7 | . 6 7 Average Carried 3 | . 3 4 Final Capacity 10 | 5 10 10 Final Carried 6 | . 6 4 Class Distribution -------------------- 100% | Mutant Dominant Class ---------------- Mutant | -10/Materials Mutant | -10/Subcaves Resources | -11 -10 -10 ----------- Run | Yrd Mat Sub Matter Collected 283 | 191 82 10 Remotely . | . . . Salvage Created 244 | . 213 31 Parts 16 | . 14 2 Haulers Intercepted . | . . . Recyclers Shooed . | . . . Parts Field Recycled . | . . . Retrieved Matter . | . . . Parts Self-Destructed . | . . . Prevented . | . . . Parts Restored . | . . . Kills | -11 -10 -10 ------- Run | Yrd Mat Sub Combat Hostiles Destroyed 5 | . 4 1 Guns 5 | . 4 1 Classes Destroyed 4 | . 3 1 Operator 1 | . 1 . Watcher 2 | . 2 . Grunt 4 | . 4 . Subdweller 1 | . . 1 Best Kill Streak 3 | . 3 1 Combat Bots Only 1 | . 1 1 Max Kills in Single Turn 2 | . 2 1 Gunslinging . | . . . Exploded . | . . . Melee . | . . . Uniques/NPCs Destroyed . | . . . Combat | -11 -10 -10 -------- Run | Yrd Mat Sub Hostile Shots Fired 78 | 3 17 58 Missed 22 | 2 3 17 Hits 56 | 1 14 41 Projectile 56 | 1 14 41 Damage Taken 1020 | 12 153 855 Core 269 | . 43 226 Absorbed by Shields . | . . . Core Remaining (%) 100 | 100 . . Volleys Fired 30 | . 21 9 Largest 2 | . 2 2 Hottest 90 | . 90 90 Shots Fired 58 | . 42 16 Gun 58 | . 42 16 Cannon . | . . . Launcher . | . . . Special . | . . . Kinetic . | . . . Thermal 58 | . 42 16 Explosive . | . . . Electromagnetic . | . . . Robot Hit Streak 17 | . 5 17 Robot Miss Streak 2 | . 2 . Penetration Max . | . . . Secondary Targets . | . . . Shots Hit Robots 38 | . 22 16 Core Hits 16 | . 13 3 Critical Kills . | . . . Critical Parts Destroyed . | . . . Critical Strikes 2 | . 1 1 Burn 2 | . 1 1 Melee Attacks . | . . . Impact . | . . . Slashing . | . . . Piercing . | . . . Sneak Attacks . | . . . Combat Hostiles . | . . . Follow-up Attacks . | . . . Damage Inflicted 470 | 3 275 192 Guns 465 | . 273 192 Cannons . | . . . Explosions . | . . . Melee . | . . . Ramming 5 | 3 2 . Kinetic . | . . . Thermal 465 | . 273 192 Explosive . | . . . Electromagnetic . | . . . Impact . | . . . Slashing . | . . . Piercing . | . . . Highest Corruption . | . . . Average Corruption . | . . . Corruption Purged . | . . . Corruption Blocked . | . . . Overload Shots . | . . . Overflow Damage . | . . . Projectiles . | . . . Explosions . | . . . Melee . | . . . Knockbacks . | . . . Impact . | . . . Kinetic . | . . . Secondary . | . . . Self-Inflicted Damage . | . . . Shots . | . . . Rammed . | . . . Targets Rammed 3 | 1 2 . Kicked 3 | 1 2 . Crushed . | . . . Highest Temperature 120 | . 120 . Average Temperature 39 | . 39 . Received Heat Transfer 171 | 6 84 81 Siege Activations . | . . . Martial Activations . | . . . Shielding Activations . | . . . Robots Disrupted . | . . . Combat Hostiles . | . . . Robots Corrupted . | . . . Combat Hostiles . | . . . Parts Fried . | . . . Impact Corruptions . | . . . Robots Melted . | . . . Combat Hostiles . | . . . Parts Melted 4 | . 3 1 Heat Transferred 1399 | . 817 582 Parts Sabotaged . | . . . Parts Stolen . | . . . Parts Stripped . | . . . Power Chain Reactions . | . . . Alert | -11 -10 -10 ------- Run | Yrd Mat Sub Maximum Alert Level . | . . . Low Security (%) 100 | 100 100 . Level 1 . | . . . Level 2 . | . . . Level 3 . | . . . Level 4 . | . . . Level 5 . | . . . High Security . | . . . Max Security . | . . . Peak Influence 36 | . 36 . Initial . | . . . Average 7 | . 8 . Influence Increases 141 | . 141 . Destroy 0b10 Robot/C 80 | . 80 . Destroy 0b10 Robot/NC 15 | . 15 . Destroy Leader 24 | . 24 . Successful Hack 7 | . 7 . Lose Combat Pursuer 15 | . 15 . Influence Decreases 141 | . 137 4 Entered New Map 3 | . . 3 Time Decay 128 | . 127 1 Lost Part 10 | . 10 . Squads Dispatched 3 | . 3 . Investigation 1 | . 1 . Extermination . | . . . Reinforcement 2 | . 2 . Assault . | . . . Garrison . | . . . Intercept . | . . . Searches Triggered . | . . . Construction Impeded . | . . . Haulers Reinforced . | . . . Active Scanning Responses . | . . . Cargo Convoy Interrupts . | . . . Stealth | -11 -10 -10 --------- Run | Yrd Mat Sub Distress Signals . | . . . Communications Jammed . | . . . Distress Signals . | . . . Times Spotted 24 | 1 13 10 Peak Tracking Total 8 | 1 3 8 Tactical Retreats 1 | . 1 . Traps | -11 -10 -10 ------- Run | Yrd Mat Sub Traps Triggered . | . . . Indirectly . | . . . Trap Hack Attempts . | . . . Triggered . | . . . Disarmed . | . . . Reprogrammed . | . . . Reused . | . . . Traps Extracted . | . . . Installed . | . . . Triggered . | . . . Machines | -11 -10 -10 ---------- Run | Yrd Mat Sub Machines Disabled . | . . . Max in Single Turn . | . . . Machines Repaired . | . . . Machines Dismantled . | . . . Machines Sabotaged . | . . . Overloaded Fab Kills . | . . . Hacking | -11 -10 -10 --------- Run | Yrd Mat Sub Machines Accessed 3 | . 3 . Terminals 2 | . 2 . Fabricators . | . . . Repair Stations . | . . . Recycling Units 1 | . 1 . Scanalyzers . | . . . Garrison Access . | . . . Total Hacks 10 | . 10 . Successful 5 | . 5 . Failed 5 | . 5 . Catastrophic 1 | . 1 . Database Lockouts . | . . . Manual 7 | . 7 . Terminals 9 | . 9 . Fabricators . | . . . Repair Stations . | . . . Recycling Units 1 | . 1 . Scanalyzers . | . . . Garrison Access . | . . . Terminal Hacks 3 | . 3 . Record 3 | . 3 . Fabricator Hacks . | . . . Repair Station Hacks . | . . . Recycling Unit Hacks 1 | . 1 . Report Inventory 1 | . 1 . Scanalyzer . | . . . Garrison Access Hacks . | . . . Unauthorized Hacks 1 | . 1 . Terminals 1 | . 1 . Botnet 1 | . 1 . Fabricators . | . . . Repair Stations . | . . . Recycling Units . | . . . Scanalyzers . | . . . Garrison Access . | . . . Data Cores Recovered . | . . . Used . | . . . Hacking Detections 2 | . 2 . Full Trace Events 1 | . 1 . Feedback Events . | . . . Feedback Blocked . | . . . Robot Schematics Acquired . | . . . Robots Built . | . . . Authchips . | . . . Time . | . . . Total Robot Build Rating . | . . . Part Schematics Acquired . | . . . Parts Built . | . . . Authchips . | . . . Time . | . . . Total Part Build Rating . | . . . Part Studies Acquired . | . . . Parts Repaired . | . . . Time . | . . . Parts Recycled . | . . . Recycled Matter . | . . . Retrieved Matter . | . . . Retrieved Components . | . . . Parts Scanalyzed . | . . . Part Schematics Acquired . | . . . Parts Damaged . | . . . Bothacking | -11 -10 -10 ------------ Run | Yrd Mat Sub Used RIF Installer . | . . . Robots Hacked . | . . . Non-combat . | . . . Combat . | . . . Robot Hacks Applied . | . . . Relay Couplers Released . | . . . Fabnet Peak Effective % . | . . . Robots Rewired . | . . . Allies Hacked . | . . . Hacks Repelled . | . . . Allies | -11 -10 -10 -------- Run | Yrd Mat Sub Total Allies . | . . . Largest Group . | . . . Highest-Rated Group . | . . . Highest-Rated Ally . | . . . Total Orders . | . . . Ally Attacks . | . . . Total Damage . | . . . Kills . | . . . Allies Corrupted . | . . . Allies Melted . | . . . Intel | -11 -10 -10 ------- Run | Yrd Mat Sub Active Infowar (turns) . | . . . Robot Analysis Total . | . . . Derelict Logs Recovered . | . . . Drone Launches . | . . . Drone Recoveries . | . . . Exploration | -11 -10 -10 ------------- Run | Yrd Mat Sub Turns Passed 954 | 75 594 285 Spaces Moved 581 | 64 380 137 Core 22 | 19 . 3 Treads . | . . . Legs 559 | 45 380 134 Wheels . | . . . Hover . | . . . Flight . | . . . Fastest Speed 50 | 50 120 120 Average Speed 131 | 99 120 180 Slowest Speed 200 | 120 120 200 Overloaded Moves . | . . . Propulsion Burnouts . | . . . Robots Hopped . | . . . Potential Cave-ins . | . . . Cave-ins Triggered . | . . . Exploration Rate (%) 17 | 5 40 8 Regions Visited 2 Branch Regions 1 Pre-discovered Areas . | . . . Known Exits Taken . | . . . Unknown Exits Taken 2 | 1 1 . Scrap Searched 3 | . . 3 Spaces Dug . | . . . Terrain Destroyed . | . . . Melee . | . . . Projectile . | . . . AOE . | . . . Terrain Rammed . | . . . Walls Destroyed . | . . . Machines Disabled . | . . . Actions | -11 -10 -10 --------- Run | Yrd Mat Sub Total 709 | 72 475 162 Wait 70 | 3 60 7 Move 580 | 64 379 137 Hop . | . . . Pick Up 11 | . 9 2 Fast Attach 7 | 5 1 1 Attach 3 | . 2 1 Detach 1 | . . 1 Swap . | . . . Drop 4 | . 1 3 Fire 30 | . 21 9 Melee . | . . . Ram . | . . . Kick 2 | . 2 . Crush . | . . . Escape Stasis . | . . . Rewire . | . . . Trap . | . . . Miscellaneous 1 | . . 1 Route ------- -11/Scrapyard -10/Materials (discovered 3 exits: [*Mat] / [*Min] / [*Sub]) -10/Subcaves History --------- Turn | Location | Event 2 | -11/Scrapyard | Met Revision 17 66 | -11/Scrapyard | Discovered new exit (range 8) 76 | -11/Scrapyard | Entered Materials 300 | -10/Materials | Build established: Mutant 406 | -10/Materials | Discovered new exit (range 16) 448 | -10/Materials | Discovered new exit (range 14) 664 | -10/Materials | Discovered new exit (range 6) 670 | -10/Materials | Entered Subcaves 671 | -10/Subcaves | Approached by a straggling Scientist 884 | -10/Subcaves | Disturbed a concealed Subdweller 898 | -10/Subcaves | Ambushed by swarm of Subdwellers 898 | -10/Subcaves | Ambushed by Subdwellers from Twisted Machinery 907 | -10/Subcaves | Ambushed by Subdwellers from Twisted Machinery 949 | -10/Subcaves | Core integrity fell below 50% 953 | -10/Subcaves | Core integrity fell below 20% 954 | -10/Subcaves | Lost 5 allies 955 | -10/Subcaves | Destroyed by HI-L34(R) with Subdweller Laser Last Messages --------------- PO-TE8(R) emerges from the Twisted Machinery. G8-C0O(R) emerges from the Twisted Machinery. 1P-2A5(R) affixes Scrap Shield Fragment to Scrap Shield. UU-S3F(R) angrily emerges from the Twisted Machinery. D6-SJH(c) destroyed. J5-VCW(R) emerges from the Twisted Machinery. G8-C0O(R) destroyed. E2-JNV(g) destroyed. H3-CTT(R) affixes Scrap Shield Fragment to Scrap Shield. Scrap Shield destroyed. 00-0MD(R) suffers critical hit (Burn). Lgt. Ion Engine destroyed. Sml. Laser destroyed. Disposable Heat Sink melted. 00-0MD(R) destroyed. Aluminum Leg destroyed. Med. Laser destroyed. Map ----- +----------------------------------------------------+ | ?????????????????????????????????????????????????? | | ?????????????????????????????????????????????????? | | ?????????????????????????????????????????????????? | | ?????????????????????????????????????????????????? | | ??????????????????????????#######????????????????? | | ??????????????????????????#&[#%=###??????????????? | | ??????????????????????????#% %&]" ######?????????? | | ??????????????????????????##[""##### ##??####### | | ?????????????????????????###%""### #### # | | ??????????????????????####!##!# ! # | | ??????????????????????# "&" %[ = # | | ????????????????# ????# %& % | | ????????????? ## ???# =& !##### #### | | ????????????? ??## ## ##?## ##??### | | ????????????# #### ## ### ######## | | ??????????????# ## ### # | | ?????????????????# ## | | ????????????????# # ### ### | | ????????????????? ?## ! #?# ## ##?## | | ?????????????????????# =%### ##?# ####???#### | | ?????????????????????## R=#### #??## ?????????## | | ??????????????????????# *RR#?###???# ????????## | | ?????????????????????## R #???????## ##???????# | | ?????????????????????# RR #?????????##????????# | | ?????????????????????## #???????????????????## | | ??????????????????????# @ #????????????????????? | | ??????????????????????## #????????????????????? | | ?????????????????????? ##????????????????????? | | ?????????????????????# ##?????????????????????? | | ?????????????????????## ##??????????????????????? | | ?????????????????????? ""????????????????????????? | | ????????????????????? #""????????????????????????? | | ???????????????????? """"????????????????????????? | | ????????????????????"?""#????????????????????????? | | ??????????????????? "????????????????????????????? | | ?????????????????????????????????????????????????? | | ?????????????????????????????????????????????????? | | ?????????????????????????????????????????????????? | | ?????????????????????????????????????????????????? | | ?????????????????????????????????????????????????? | | ?????????????????????????????????????????????????? | | ?????????????????????????????????????????????????? | | ?????????????????????????????????????????????????? | | ?????????????????????????????????????????????????? | | ?????????????????????????????????????????????????? | | ?????????????????????????????????????????????????? | | ?????????????????????????????????????????????????? | | ?????????????????????????????????????????????????? | | ?????????????????????????????????????????????????? | | ?????????????????????????????????????????????????? | +----------------------------------------------------+ Best States ------------- Heat Dissipation 35 Energy Generation 10 Energy Capacity 125 Matter Stores 300 Matter Capacity 300 Sight Range 16 Terrain Scan Density 10 Armor Coverage 800 Evasion (%) 55 Item Schematics ----------------- None Robot Schematics ------------------ None Fabricated ------------ Nothing Repaired ---------- Nothing Studied --------- None Alien Tech Used ----------------- None Achievements -------------- DATA ERROR: Steam Global Achievement% Survival Of The Most Covered True Hacker Challenges ------------ None Game ------ Seed LaserSpikedSystem Manual? 0 Play Time 00:24:39 Cumulative 2.4 hours Start 2026.08.11 @ 18:44:21 End 2026.08.11 @ 19:29:13 Sessions 1 Manual Loads 0 Difficulty Rogue Special Mode None Game No. 2 Rogue 2 Adventurer 0 Explorer 0 Win Type - Total 0 Types 0/0/0/0/0/0/0/0/0/0 Lore% 3 Gallery% 2 Achievement% 4 Wizard Run 0 Options --------- Layout 2 ASCII 0 Keyboard 1 Movement Numpad Keybinds 0 Fullscreen 1 Font 16/Terminus Map View 50x49 Zoom Use 0% Tactical HUD 0 Map Filters NONE Filters NONE Steam SD RUN: b3204f84-aabd-4ca0-b0c2-a92c60924e09